bitfinex/quotes_BTCUSD_20250830
["timestamp","ask_amount","ask_price","bid_price","bid_amount"]
[1756578301240,0.57854851,108870.0,108860.0,0.29163052]
[1756578302712,0.57854839,108870.0,108860.0,0.29163052]
[1756578305430,0.23358046,108870.0,108860.0,0.13827052]
[1756578305628,0.57854839,108870.0,108860.0,0.29163052]
[1756578313147,0.56133426,108870.0,108860.0,0.29163052]
[1756578313348,0.57854737,108870.0,108860.0,0.29163052]
[1756578319813,0.23357944,108870.0,108860.0,0.29163052]
[1756578320015,0.57854649,108870.0,108860.0,0.29374052]
[1756578320460,0.57854649,108870.0,108860.0,0.29163052]
[1756578321203,0.57854649,108870.0,108860.0,0.29374052]
[1756578321585,0.57854649,108870.0,108860.0,0.29370052]
[1756578321831,0.23357856,108870.0,108860.0,0.29370052]
[1756578322052,0.57854649,108870.0,108860.0,0.29370052]
[1756578323175,0.57854649,108870.0,108860.0,0.14038052]
[1756578323379,0.57854649,108870.0,108860.0,0.29370052]
[1756578323781,0.57854999,108870.0,108860.0,0.29159052]
[1756578324483,0.23358206,108870.0,108860.0,0.29370052]
[1756578324689,0.57854999,108870.0,108860.0,0.47742273]
[1756578325764,0.57854999,108870.0,108860.0,0.29370052]
[1756578327309,0.57558999,108870.0,108860.0,0.29370052]
[1756578327523,0.57559082,108870.0,108860.0,0.29370052]
[1756578330187,0.57855082,108870.0,108860.0,0.29370052]
[1756578332731,0.23358289,108870.0,108860.0,0.29370052]
[1756578332931,0.57855082,108870.0,108860.0,0.29370052]
[1756578334143,0.57855082,108870.0,108860.0,0.29159052]
[1756578334320,0.56133426,108870.0,108860.0,0.29155052]
[1756578334543,0.57855634,108870.0,108860.0,0.29155052]
[1756578334746,0.57855634,108870.0,108860.0,0.13827052]
[1756578334950,0.57855634,108870.0,108860.0,0.29155052]
[1756578338080,0.57115634,108870.0,108860.0,0.29155052]
[1756578341582,0.57115744,108870.0,108860.0,0.29155052]
[1756578343585,0.57115744,108870.0,108860.0,0.13827052]
[1756578343881,0.57115744,108870.0,108860.0,0.29155052]
[1756578345040,0.55393426,108870.0,108860.0,0.29155052]
[1756578345242,0.57115719,108870.0,108860.0,0.29155052]
[1756578345678,0.5711572,108870.0,108860.0,0.29155052]
[1756578348264,0.5711572,108870.0,108860.0,0.13827052]
[1756578348485,0.5711572,108870.0,108860.0,0.29155052]
[1756578349936,0.22618927,108870.0,108860.0,0.29155052]
[1756578350194,0.5711572,108870.0,108860.0,0.29155052]
[1756578355565,0.55393426,108870.0,108860.0,0.29155052]
[1756578355774,0.57115834,108870.0,108860.0,0.29155052]
[1756578358988,0.22619041,108870.0,108860.0,0.29155052]
[1756578359193,0.57115834,108870.0,108860.0,0.29155052]
[1756578359486,0.57115863,108870.0,108860.0,0.29155052]
[1756578360241,0.57115863,108870.0,108860.0,0.47527273]
[1756578360412,0.57115863,108870.0,108860.0,0.47735273]
[1756578360833,0.57115863,108870.0,108860.0,0.29363052]
[1756578365057,0.55393426,108870.0,108860.0,0.29363052]
[1756578365422,0.57116067,108870.0,108860.0,0.29363052]
[1756578365919,0.57116067,108870.0,108860.0,0.29151052]
[1756578367143,0.57116067,108870.0,108860.0,0.04529051]
[1756578367144,0.95013463,108870.0,108860.0,0.04529051]
[1756578367348,1.29659331,108870.0,108860.0,0.00504759]
[1756578367571,1.74969968,108870.0,108860.0,0.00504759]
[1756578367783,1.40473175,108870.0,108860.0,0.15828759]
[1756578368004,1.31643543,108870.0,108860.0,0.15828759]
[1756578368214,1.29659331,108870.0,108860.0,0.15828759]
[1756578368443,1.29659331,108870.0,108860.0,0.15628759]
[1756578368660,1.44983331,108870.0,108860.0,0.15328759]
[1756578368886,1.44983331,108870.0,108860.0,0.15428759]
[1756578369111,1.44983331,108870.0,108860.0,0.15328759]
[1756578369241,1.44983331,108870.0,108860.0,0.15428759]
[1756578369689,1.44983331,108870.0,108860.0,0.15328759]
[1756578371131,1.29659331,108870.0,108860.0,0.15328759]
[1756578371794,1.29659331,108870.0,108860.0,4.759e-05]
[1756578371941,1.29659331,108870.0,108860.0,0.15328759]
[1756578372601,0.60665745,108870.0,108860.0,0.15328759]
[1756578372803,1.26258728,108870.0,108860.0,0.15328759]
[1756578373171,0.91761935,108870.0,108860.0,0.15328759]
[1756578375073,0.91116067,108870.0,108860.0,0.15328759]
[1756578375601,0.89393426,108870.0,108860.0,0.15328759]
[1756578375757,0.91112928,108870.0,108860.0,0.15328759]
[1756578376866,0.22616135,108870.0,108860.0,0.15536759]
[1756578377074,0.57112928,108870.0,108860.0,0.15536759]
[1756578379339,0.57112928,108870.0,108860.0,0.15328759]
[1756578379511,0.57117928,108870.0,108860.0,0.2462676]
[1756578381750,0.56608928,108870.0,108860.0,0.2483976]
[1756578382002,0.22112135,108870.0,108860.0,0.43211981]
[1756578382220,0.56608928,108870.0,108860.0,0.43534981]
[1756578382733,0.56609281,108870.0,108860.0,0.43534981]
[1756578383882,0.56609281,108870.0,108860.0,0.43211981]
[1756578384084,0.22112488,108870.0,108860.0,0.50275981]
[1756578384287,0.56609281,108870.0,108860.0,0.50275981]
[1756578384485,0.54889426,108870.0,108860.0,0.50275981]
[1756578388493,0.56609431,108870.0,108860.0,0.50275981]
[1756578390702,0.03742105,108870.0,108860.0,0.50275981]
[1756578390936,0.22112638,108870.0,108860.0,0.50275981]
[1756578391309,0.56609431,108870.0,108860.0,0.50275981]
[1756578392011,0.22112638,108870.0,108860.0,0.50275981]
[1756578392238,0.56609431,108870.0,108860.0,0.50275981]
[1756578392472,0.03742105,108870.0,108860.0,0.50275981]
[1756578392637,0.020221,108870.0,108860.0,0.50598981]
[1756578393061,0.020221,108870.0,108860.0,0.87189656]
[1756578393562,0.020221,108870.0,108860.0,0.89951556]
[1756578393956,0.020221,108870.0,108860.0,0.74627556]
[1756578394176,0.020221,108870.0,108860.0,0.89947556]
[1756578394313,0.020221,108870.0,108860.0,0.55450763]
[1756578394767,0.020221,108870.0,108860.0,0.40130763]
[1756578394953,0.020221,108870.0,108860.0,0.55450763]
[1756578395465,0.020221,108870.0,108860.0,0.55127763]
[1756578397566,0.020221,108870.0,108860.0,0.89947556]
[1756578397775,0.5286565,108880.0,108870.0,0.18370533]
[1756578397955,0.5562755,108880.0,108870.0,0.27881534]
[1756578398944,0.5592655,108880.0,108870.0,0.27881534]
[1756578399144,0.5572755,108880.0,108870.0,0.27881534]
[1756578399439,0.21330757,108880.0,108870.0,0.27881534]
[1756578399697,0.5602655,108880.0,108870.0,0.27881534]
[1756578399875,0.5632755,108880.0,108870.0,0.27881534]
[1756578400946,0.5632755,108880.0,108870.0,0.43201534]
[1756578404381,0.5632755,108880.0,108870.0,0.27881534]
[1756578404590,0.5632755,108880.0,108870.0,0.43197534]
[1756578406465,0.5632755,108880.0,108870.0,0.42984534]
[1756578407600,0.5632755,108880.0,108870.0,0.43197534]
[1756578408007,0.34696793,108880.0,108870.0,0.43197534]
[1756578408587,0.53065639,108880.0,108870.0,0.43197534]
[1756578408797,0.53565639,108880.0,108870.0,0.43197534]
[1756578418270,0.53065639,108880.0,108870.0,0.43197534]
[1756578418468,0.53065639,108880.0,108870.0,0.43492534]
[1756578418675,0.002,108880.0,108870.0,0.80083209]
[1756578419655,0.001,108880.0,108870.0,0.80083209]
[1756578419869,0.001,108880.0,108870.0,0.80183209]
[1756578420560,0.57755137,108890.0,108870.0,0.80183209]
[1756578420759,0.57755137,108890.0,108880.0,0.34960457]
[1756578420970,0.57969137,108890.0,108880.0,0.34940847]
[1756578421648,0.596918,108890.0,108880.0,0.34940847]
[1756578422089,0.57969137,108890.0,108880.0,0.34940847]
[1756578422427,0.57066109,108890.0,108880.0,0.34940847]
[1756578422657,0.21650959,108890.0,108880.0,0.34940847]
[1756578422873,0.18367159,108890.0,108880.0,0.34940847]
[1756578424173,0.2009044,108890.0,108880.0,0.34940847]
[1756578424620,0.18367159,108890.0,108880.0,0.34940847]
[1756578425065,0.18581159,108890.0,108880.0,0.34940847]
[1756578425270,0.18889159,108890.0,108880.0,0.34940847]
[1756578425431,0.53385952,108890.0,108880.0,0.34940847]
[1756578426524,0.55109924,108890.0,108880.0,0.34940847]
[1756578428747,0.55109924,108890.0,108880.0,0.34730847]
[1756578429005,0.55109924,108890.0,108880.0,0.50256847]
[1756578430244,0.55109924,108890.0,108880.0,0.34940847]
[1756578430541,0.55109924,108890.0,108880.0,0.50252847]
[1756578431305,0.55109924,108890.0,108880.0,0.50042847]
[1756578431882,0.20613131,108890.0,108880.0,0.50042847]
[1756578432319,0.18889159,108890.0,108880.0,0.50042847]
[1756578432862,0.55108436,108890.0,108880.0,0.16362001]
[1756578433066,0.55108438,108890.0,108880.0,0.31674001]
[1756578433268,0.53385952,108890.0,108880.0,0.31674001]
[1756578437811,0.53385952,108890.0,108880.0,0.16362001]
[1756578438011,0.55108225,108890.0,108880.0,0.31674001]
[1756578438716,0.57869725,108890.0,108880.0,0.31674001]
[1756578442501,0.23372932,108890.0,108880.0,0.31674001]
[1756578442661,0.57869725,108890.0,108880.0,0.31674001]
[1756578445102,0.57870522,108890.0,108880.0,0.31674001]
[1756578445668,0.57870711,108890.0,108880.0,0.31674001]
[1756578447462,0.23373918,108890.0,108880.0,0.31875001]
[1756578447659,0.57870711,108890.0,108880.0,0.31674001]
[1756578450061,0.23373918,108890.0,108880.0,0.31674001]
[1756578450263,0.57870711,108890.0,108880.0,0.50042847]
[1756578450865,0.39503552,108890.0,108880.0,0.50243847]
[1756578452077,0.22851918,108890.0,108880.0,0.50243847]
[1756578452286,0.57348711,108890.0,108880.0,0.50243847]
[1756578454127,0.38981552,108890.0,108880.0,0.50243847]
[1756578454355,0.01723259,108890.0,108880.0,0.87143522]
[1756578455563,0.01723259,108890.0,108880.0,0.52646729]
[1756578455768,0.0172414,108890.0,108880.0,0.52337729]
[1756578456408,0.56858383,108900.0,108880.0,0.52337729]
[1756578456587,0.58582461,108900.0,108890.0,0.00229589]
[1756578456798,0.58582461,108900.0,108890.0,0.0952759]
[1756578456960,0.58784461,108900.0,108890.0,0.0952759]
[1756578457575,0.58884461,108900.0,108890.0,0.0952759]
[1756578458162,0.58884461,108900.0,108890.0,0.28095749]
[1756578458388,0.58884461,108900.0,108890.0,0.24831001]
[1756578458502,0.58984461,108900.0,108890.0,0.24831001]
[1756578458704,0.58984461,108900.0,108890.0,0.4319816]
[1756578459180,0.58884461,108900.0,108890.0,0.4319816]
[1756578459373,0.58984294,108900.0,108890.0,0.4319816]
[1756578460124,0.58984294,108900.0,108890.0,0.24630001]
[1756578463114,0.58984294,108900.0,108890.0,0.09298001]
[1756578463293,0.58984294,108900.0,108890.0,0.2486359]
[1756578463492,0.58984294,108900.0,108890.0,0.24634001]
[1756578463877,0.58984294,108900.0,108890.0,0.09298001]
[1756578464086,0.93481087,108900.0,108890.0,0.24634001]
[1756578464660,0.93481087,108900.0,108890.0,0.24654001]
[1756578466370,0.9348078,108900.0,108890.0,0.24654001]
[1756578472261,0.9348078,108900.0,108890.0,0.09298001]
[1756578472491,0.94127184,108900.0,108890.0,0.24650001]
[1756578476901,0.94127267,108900.0,108890.0,0.24650001]
[1756578477548,0.25133681,108900.0,108890.0,0.24650001]
[1756578477747,0.94127267,108900.0,108890.0,0.24650001]
[1756578479909,1.2862406,108900.0,108890.0,0.24650001]
[1756578482285,1.28623991,108900.0,108890.0,0.24650001]
[1756578484065,0.25133612,108900.0,108890.0,0.24650001]
[1756578484516,0.94127198,108900.0,108890.0,0.24650001]
[1756578485730,0.25133612,108900.0,108890.0,0.24650001]
[1756578485962,0.92963879,108900.0,108890.0,0.24846001]
[1756578486287,0.91240176,108900.0,108890.0,0.24846001]
[1756578486695,0.9296362,108900.0,108890.0,0.24846001]
[1756578489317,0.9347162,108900.0,108890.0,0.24846001]
[1756578494750,0.9296362,108900.0,108890.0,0.4321316]
[1756578495239,0.9316962,108900.0,108890.0,0.4321316]
[1756578495469,0.9347162,108900.0,108890.0,0.4321316]
[1756578495802,0.9347162,108900.0,108890.0,0.24846001]
[1756578496199,0.9347162,108900.0,108890.0,0.24886001]
[1756578497276,0.91748176,108900.0,108890.0,0.24886001]
[1756578497476,0.93471625,108900.0,108890.0,0.24886001]
[1756578497789,0.93471616,108900.0,108890.0,0.24886001]
[1756578499541,0.93471616,108900.0,108890.0,0.09298001]
[1756578499767,0.93471616,108900.0,108890.0,0.24682001]
[1756578500373,0.93471616,108900.0,108890.0,0.09298001]
[1756578500676,0.93471616,108900.0,108890.0,0.24682001]
[1756578507823,0.93471725,108900.0,108890.0,0.24682001]
[1756578509403,0.93471725,108900.0,108890.0,0.24894001]
[1756578509960,0.73678535,108900.0,108890.0,0.4326116]
[1756578510188,0.23050421,108900.0,108890.0,0.4357516]
[1756578510406,0.71954986,108900.0,108890.0,0.4357516]
[1756578510845,0.90320458,108900.0,108890.0,0.4357516]
[1756578511077,0.90120458,108900.0,108890.0,0.4357516]
[1756578511309,0.90320458,108900.0,108890.0,0.4357516]
[1756578511512,0.90220458,108900.0,108890.0,0.4357516]
[1756578511710,0.90120458,108900.0,108890.0,0.4357516]
[1756578512117,0.90120458,108900.0,108890.0,0.4336116]
[1756578512578,0.71754986,108900.0,108890.0,0.4336116]
[1756578512803,0.71754986,108900.0,108890.0,0.4367516]
[1756578513008,0.90120458,108900.0,108890.0,0.4367516]
[1756578513431,0.90120458,108900.0,108890.0,0.4346116]
[1756578515644,0.027614,108900.0,108890.0,0.4346116]
[1756578515857,0.71754986,108900.0,108890.0,0.4346116]
[1756578516090,0.90120458,108900.0,108890.0,0.4346116]
[1756578516765,0.90623458,108900.0,108890.0,0.09498001]
[1756578516972,0.90623458,108900.0,108890.0,0.24870001]
[1756578517984,0.90623458,108900.0,108890.0,0.09498001]
[1756578518190,0.90623458,108900.0,108890.0,0.24878001]
[1756578522716,0.90623458,108900.0,108890.0,0.24874001]
[1756578522717,1.25120251,108900.0,108890.0,0.24874001]
[1756578523038,0.90623458,108900.0,108890.0,0.24874001]
[1756578526200,0.90623458,108900.0,108890.0,0.31938001]
[1756578530115,0.21629872,108900.0,108890.0,0.5030516]
[1756578530275,0.90623458,108900.0,108890.0,0.5030516]
[1756578530484,0.90623458,108900.0,108890.0,0.31938001]
[1756578537234,0.92346688,108900.0,108890.0,0.31938001]
[1756578538252,0.23353102,108900.0,108890.0,0.5050216]
[1756578538450,0.92346688,108900.0,108890.0,0.5030516]
[1756578539062,0.92346688,108900.0,108890.0,0.31938001]
[1756578539615,0.92347392,108900.0,108890.0,0.31938001]
[1756578543783,0.23353806,108900.0,108890.0,0.5030516]
[1756578544009,0.90623458,108900.0,108890.0,0.31938001]
[1756578544230,0.92347489,108900.0,108890.0,0.16562001]
[1756578544444,0.92347489,108900.0,108890.0,0.31990001]
[1756578546226,0.92347489,108900.0,108890.0,0.16562001]
[1756578546465,0.92347489,108900.0,108890.0,0.31986001]
[1756578547186,0.92347533,108900.0,108890.0,0.31986001]
[1756578549054,0.90623458,108900.0,108890.0,0.31986001]
[1756578549220,0.92347606,108900.0,108890.0,0.31986001]
[1756578551080,0.92347606,108900.0,108890.0,0.16562001]
[1756578551287,0.92347606,108900.0,108890.0,0.31978001]
[1756578552736,0.92347572,108900.0,108890.0,0.31978001]
[1756578554884,0.23353986,108900.0,108890.0,0.31978001]
[1756578555062,0.92347572,108900.0,108890.0,0.31978001]
[1756578559778,0.92347827,108900.0,108890.0,0.31978001]
[1756578570491,0.92347709,108900.0,108890.0,0.31978001]
[1756578571230,0.92347738,108900.0,108890.0,0.31978001]
[1756578576286,0.23354152,108900.0,108890.0,0.31978001]
[1756578576468,0.92347738,108900.0,108890.0,0.31978001]
[1756578577506,0.92347738,108900.0,108890.0,0.5034516]
[1756578581070,0.90623458,108900.0,108890.0,0.5034516]
[1756578581277,0.9234778,108900.0,108890.0,0.5034516]
[1756578586827,0.9234778,108900.0,108890.0,0.31978001]
[1756578587055,0.9234778,108900.0,108890.0,0.31946001]
[1756578587824,0.9234778,108900.0,108890.0,0.16562001]
[1756578588031,0.9234778,108900.0,108890.0,0.31950001]
[1756578591683,0.92347973,108900.0,108890.0,0.31950001]
[1756578591920,0.92347973,108900.0,108890.0,0.5031716]
[1756578601294,0.73982422,108900.0,108890.0,0.5051716]
[1756578601672,0.72257986,108900.0,108890.0,0.5051716]
[1756578601869,0.71754986,108900.0,108890.0,0.5082016]
[1756578602520,0.71754986,108900.0,108890.0,0.5051716]
[1756578602929,0.90630458,108900.0,108890.0,0.5051716]
[1756578603162,0.90630458,108900.0,108890.0,0.32130001]
[1756578603500,0.92354706,108900.0,108890.0,0.32130001]
[1756578604112,0.92354706,108900.0,108890.0,0.5049716]
[1756578607388,0.92354706,108900.0,108890.0,0.32130001]
[1756578607835,0.92354706,108900.0,108890.0,0.5029716]
[1756578611802,0.9235482,108900.0,108890.0,0.5029716]
[1756578613947,0.9235482,108900.0,108890.0,0.31918001]
[1756578617234,0.9235482,108900.0,108890.0,0.5028516]
[1756578618676,0.9235482,108900.0,108890.0,0.31918001]
[1756578620578,0.9235482,108900.0,108890.0,0.5028516]
[1756578622302,0.90630458,108900.0,108890.0,0.5028516]
[1756578622503,0.92354932,108900.0,108890.0,0.5028516]
[1756578624934,0.92354932,108900.0,108890.0,0.5048916]
[1756578626838,0.92354932,108900.0,108890.0,0.5028516]
[1756578627045,0.92354932,108900.0,108890.0,0.31918001]
[1756578628474,0.92354932,108900.0,108890.0,0.31902001]
[1756578629775,0.92354896,108900.0,108890.0,0.31902001]
[1756578632875,0.90630458,108900.0,108890.0,0.31902001]
[1756578633061,0.92354941,108900.0,108890.0,0.31902001]
[1756578633523,0.92354929,108900.0,108890.0,0.31902001]
[1756578641638,0.92354929,108900.0,108890.0,0.16562001]
[1756578641836,0.92354929,108900.0,108890.0,0.31902001]
[1756578642958,0.92354929,108900.0,108890.0,0.5026916]
[1756578643400,0.90630458,108900.0,108890.0,0.5026916]
[1756578643603,0.92355011,108900.0,108890.0,0.5026916]
[1756578644404,0.92355011,108900.0,108890.0,0.31902001]
[1756578646417,0.92355011,108900.0,108890.0,0.5026916]
[1756578647080,0.92355011,108900.0,108890.0,0.5047316]
[1756578649010,0.92355011,108900.0,108890.0,0.3513316]
[1756578649211,0.92355011,108900.0,108890.0,0.5027316]
[1756578650392,0.92355011,108900.0,108890.0,0.31906001]
[1756578650598,0.92355018,108900.0,108890.0,0.31906001]
[1756578651568,0.92355018,108900.0,108890.0,0.5027316]
[1756578654104,0.92355035,108900.0,108890.0,0.5027316]
[1756578654563,0.92355041,108900.0,108890.0,0.5027316]
[1756578659026,0.92355041,108900.0,108890.0,0.16562001]
[1756578659232,0.92355041,108900.0,108890.0,0.31902001]
[1756578660864,0.92355112,108900.0,108890.0,0.31902001]
[1756578662037,0.92355112,108900.0,108890.0,0.16562001]
[1756578662248,0.92355112,108900.0,108890.0,0.31902001]
[1756578663368,0.92355139,108900.0,108890.0,0.31902001]
[1756578664140,0.92355122,108900.0,108890.0,0.31902001]
[1756578664669,0.92355122,108900.0,108890.0,0.5026916]
[1756578665929,0.92355122,108900.0,108890.0,0.5048516]
[1756578666875,0.92355122,108900.0,108890.0,0.16562001]
[1756578667073,1.01184754,108900.0,108890.0,0.31902001]
[1756578669275,0.92355122,108900.0,108890.0,0.31902001]
[1756578670450,0.92355122,108900.0,108890.0,0.16562001]
[1756578670656,0.9235495,108900.0,108890.0,0.31906001]
[1756578673955,0.90630458,108900.0,108890.0,0.31902001]
[1756578674274,0.92354868,108900.0,108890.0,0.31902001]
[1756578674703,0.92354868,108900.0,108890.0,0.16562001]
[1756578674904,0.92354868,108900.0,108890.0,0.22604]
[1756578674905,1.30898922,108900.0,108890.0,0.22604]
[1756578675320,1.64898922,108900.0,108890.0,0.22604]
[1756578677448,1.67925301,108900.0,108890.0,0.22604]
[1756578677882,2.0440692,108900.0,108890.0,0.1554]
[1756578678290,2.0440692,108900.0,108890.0,0.002]
[1756578678491,2.13236552,108900.0,108890.0,0.1554]
[1756578679679,4.71229352,108900.0,108890.0,0.1554]
[1756578679898,4.86569352,108900.0,108890.0,0.1554]
[1756578680887,4.86569352,108900.0,108890.0,0.1534]
[1756578681065,4.8656817,108900.0,108890.0,0.1534]
[1756578681915,0.18368846,108880.0,108870.0,0.07064]
[1756578682263,0.18368846,108880.0,108870.0,0.31706001]
[1756578682264,1.25760828,108880.0,108870.0,0.31706001]
[1756578682395,1.25760828,108880.0,108870.0,0.16362001]
[1756578682601,1.28522828,108880.0,108870.0,0.07064]
[1756578682814,1.28522828,108880.0,108870.0,0.22408]
[1756578683014,1.30243374,108880.0,108870.0,0.22408]
[1756578683418,1.28522828,108880.0,108870.0,0.22608]
[1756578684287,1.28522828,108880.0,108870.0,0.22908]
[1756578685087,1.3735246,108880.0,108870.0,0.22908]
[1756578685322,1.30242834,108880.0,108870.0,0.22908]
[1756578685585,1.30242855,108880.0,108870.0,0.22908]
[1756578685795,1.30242855,108880.0,108870.0,0.07564]
[1756578685999,1.30242855,108880.0,108870.0,0.22908]
[1756578686585,1.30242855,108880.0,108870.0,0.22708]
[1756578686992,1.30242855,108880.0,108870.0,0.22408]
[1756578687196,1.36312058,108880.0,108870.0,0.22408]
[1756578687536,1.36312058,108880.0,108870.0,0.07064]
[1756578687537,1.30242855,108880.0,108870.0,0.07064]
[1756578687754,1.30242855,108880.0,108870.0,0.22408]
[1756578689587,1.26842252,108880.0,108870.0,0.22408]
[1756578690740,1.26842252,108880.0,108870.0,0.07064]
[1756578691150,1.26842252,108880.0,108870.0,0.22408]
[1756578691591,1.26840967,108880.0,108870.0,0.22408]
[1756578692772,1.35670599,108880.0,108870.0,0.22408]
[1756578695037,1.35670591,108880.0,108870.0,0.22408]
[1756578695596,1.26840959,108880.0,108870.0,0.22408]
[1756578696398,1.60840959,108880.0,108870.0,0.07064]
[1756578696544,1.60840959,108880.0,108870.0,0.22408]
[1756578697455,1.61485634,108880.0,108870.0,0.22408]
[1756578698222,1.64886237,108880.0,108870.0,0.22408]
[1756578698367,1.73715869,108880.0,108870.0,0.22408]
[1756578698570,1.73071194,108880.0,108870.0,0.22408]
[1756578698773,1.64886304,108880.0,108870.0,0.22408]
[1756578702268,1.64887804,108880.0,108870.0,0.22408]
[1756578704537,1.64887804,108880.0,108870.0,0.07064]
[1756578704816,1.64887804,108880.0,108870.0,0.22408]
[1756578705358,1.66872304,108880.0,108870.0,0.22408]
[1756578705560,1.66876021,108880.0,108870.0,0.22408]
[1756578706361,1.7048031,108880.0,108870.0,0.22408]
[1756578707974,1.66876021,108880.0,108870.0,0.22408]
[1756578709293,1.66876804,108880.0,108870.0,0.22408]
[1756578711813,1.32380011,108880.0,108870.0,0.22408]
[1756578712640,1.31734004,108880.0,108870.0,0.22408]
[1756578712799,1.32380532,108880.0,108870.0,0.22408]
[1756578716164,1.31735116,108880.0,108870.0,0.22408]
[1756578716375,1.32381834,108880.0,108870.0,0.22408]
[1756578719835,1.32382275,108880.0,108870.0,0.22408]
[1756578720976,1.31881275,108880.0,108870.0,0.22614]
[1756578721354,1.28480672,108880.0,108870.0,0.22614]
[1756578721760,1.29008672,108880.0,108870.0,0.22614]
[1756578722147,1.29008682,108880.0,108870.0,0.22614]
[1756578723441,0.59487096,108880.0,108870.0,0.22614]
[1756578723622,1.28480682,108880.0,108870.0,0.22614]
[1756578723873,1.26496182,108880.0,108870.0,0.22614]
[1756578724083,1.26703182,108880.0,108870.0,0.0727]
[1756578724261,1.29011263,108880.0,108870.0,0.22614]
[1756578724436,1.27024182,108880.0,108870.0,0.22614]
[1756578724645,1.29011218,108880.0,108870.0,0.22614]
[1756578725236,1.27024182,108880.0,108870.0,0.22614]
[1756578725448,1.24652432,108880.0,108870.0,0.22614]
[1756578725631,1.2702406,108880.0,108870.0,0.22614]
[1756578727400,0.57709474,108880.0,108870.0,0.22614]
[1756578727595,1.2670306,108880.0,108870.0,0.22614]
[1756578728144,1.2702406,108880.0,108870.0,0.22614]
[1756578730047,1.2649606,108880.0,108870.0,0.22614]
[1756578730255,1.2649606,108880.0,108870.0,0.0727]
[1756578730478,1.2702406,108880.0,108870.0,0.22614]
[1756578732700,1.27023935,108880.0,108870.0,0.22614]
[1756578736212,1.27023499,108880.0,108870.0,0.22614]
[1756578736411,1.25299076,108880.0,108870.0,0.2261]
[1756578736633,1.27023437,108880.0,108870.0,0.2261]
[1756578737040,1.27023437,108880.0,108870.0,0.07064]
[1756578737241,1.27023437,108880.0,108870.0,0.22404]
[1756578743363,1.27023612,108880.0,108870.0,0.22404]
[1756578746638,1.27023612,108880.0,108870.0,0.07064]
[1756578746842,1.26377163,108880.0,108870.0,0.22404]
[1756578747066,1.27023937,108880.0,108870.0,0.22404]
[1756578749401,1.29011125,108880.0,108870.0,0.22404]
[1756578756013,0.18370533,108870.0,108860.0,0.07068759]
[1756578756141,0.54592057,108870.0,108860.0,0.3192176]
[1756578756555,0.57354157,108870.0,108860.0,0.3192176]
[1756578757387,0.57354303,108870.0,108860.0,0.3212176]
[1756578763448,0.57852303,108870.0,108860.0,0.3212176]
[1756578763990,0.57852303,108870.0,108860.0,0.1678176]
[1756578764229,0.93977567,108870.0,108860.0,0.3190676]
[1756578764434,0.94624379,108870.0,108860.0,0.3190676]
[1756578764651,0.92995908,108870.0,108860.0,0.3190676]
[1756578767003,0.92349096,108870.0,108860.0,0.3190676]
[1756578767206,0.92995863,108870.0,108860.0,0.3190676]
[1756578767826,0.91270986,108870.0,108860.0,0.3190676]
[1756578768008,0.92995683,108870.0,108860.0,0.3190676]
[1756578769963,0.92995683,108870.0,108860.0,0.07268759]
[1756578770184,0.92995683,108870.0,108860.0,0.22604759]
[1756578770375,0.92995683,108870.0,108860.0,0.15540759]
[1756578772880,0.96396286,108870.0,108860.0,0.15540759]
[1756578773644,0.96396286,108870.0,108860.0,4.759e-05]
[1756578773851,0.96396286,108870.0,108860.0,0.15340759]
[1756578777461,0.98278369,108870.0,108860.0,0.15340759]
[1756578778049,0.96396286,108870.0,108860.0,0.15340759]
[1756578778405,0.94024822,108870.0,108860.0,0.15340759]
[1756578778605,0.96395789,108870.0,108860.0,0.15340759]
[1756578779028,0.96395767,108870.0,108860.0,0.15340759]
[1756578779635,1.30395767,108870.0,108860.0,4.759e-05]
[1756578779860,1.38492666,108870.0,108860.0,4.759e-05]
[1756578780060,1.40478883,108870.0,108860.0,0.15340759]
[1756578780649,1.32381984,108870.0,108860.0,0.15340759]
[1756578781266,1.30395767,108870.0,108860.0,0.15340759]
[1756578782354,1.66878162,108870.0,108860.0,4.759e-05]
[1756578782569,1.35407748,108870.0,108860.0,0.15340759]
[1756578783186,1.86675005,108870.0,108860.0,4.759e-05]
[1756578783414,1.61007844,108870.0,108860.0,4.759e-05]
[1756578784411,1.61005533,108870.0,108860.0,4.759e-05]
[1756578786044,1.95502326,108870.0,108860.0,4.759e-05]
[1756578787965,1.79519415,108870.0,108860.0,4.759e-05]
[1756578788182,1.95501061,108870.0,108860.0,4.759e-05]
[1756578788553,1.95500988,108870.0,108860.0,4.759e-05]
[1756578790553,1.92474609,108870.0,108860.0,4.759e-05]
[1756578790932,1.95500988,108870.0,108860.0,4.759e-05]
[1756578798529,1.94854908,108870.0,108860.0,4.759e-05]
[1756578798734,1.95500364,108870.0,108860.0,4.759e-05]
[1756578801166,4.53493164,108870.0,108860.0,4.759e-05]
[1756578801911,4.55968301,108870.0,108860.0,4.759e-05]
[1756578802299,4.56068301,108870.0,108860.0,4.759e-05]
[1756578802671,4.55968301,108870.0,108860.0,4.759e-05]
[1756578803193,4.56168301,108870.0,108860.0,4.759e-05]
[1756578804910,4.56168087,108870.0,108860.0,4.759e-05]
[1756578805764,4.37805708,108870.0,108860.0,4.759e-05]
[1756578805967,4.56168087,108870.0,108860.0,4.759e-05]
[1756578806717,4.57605978,108870.0,108860.0,4.759e-05]
[1756578809392,4.57606867,108870.0,108860.0,1e-08]
[1756578810168,4.42270867,108870.0,108860.0,1e-08]
[1756578810697,4.57606867,108870.0,108860.0,1e-08]
[1756578812071,4.42270867,108870.0,108860.0,1e-08]
[1756578812268,4.57606867,108870.0,108860.0,1e-08]
[1756578812772,4.60907266,108870.0,108860.0,1e-08]
[1756578813124,4.59469375,108870.0,108860.0,1e-08]
[1756578814685,4.66537375,108870.0,108860.0,1e-08]
[1756578815280,4.66541375,108870.0,108860.0,1e-08]
[1756578816384,4.67979318,108870.0,108860.0,1e-08]
[1756578817341,4.66541375,108870.0,108860.0,1e-08]
[1756578818632,4.51201375,108870.0,108860.0,1e-08]
[1756578818766,4.66541375,108870.0,108860.0,1e-08]
[1756578819378,4.67979323,108870.0,108860.0,1e-08]
[1756578819693,4.67333292,108870.0,108860.0,1e-08]
[1756578819899,4.67978785,108870.0,108860.0,1e-08]
[1756578820498,4.67978759,108870.0,108860.0,1e-08]
[1756578820704,4.6495238,108870.0,108860.0,1e-08]
[1756578821001,4.67978759,108870.0,108860.0,1e-08]
[1756578822991,4.52638759,108870.0,108860.0,1e-08]
[1756578823191,4.67974759,108870.0,108860.0,1e-08]
[1756578823390,4.67974838,108870.0,108860.0,1e-08]
[1756578823609,4.86345838,108870.0,108860.0,1e-08]
[1756578824344,4.83870701,108870.0,108860.0,1e-08]
[1756578825583,4.83868108,108870.0,108860.0,1e-08]
[1756578830196,4.832226,108870.0,108860.0,1e-08]
[1756578830393,4.83869249,108870.0,108860.0,1e-08]
[1756578831134,4.88819834,108870.0,108860.0,1e-08]
[1756578833817,4.88820021,108870.0,108860.0,1e-08]
[1756578838781,4.88848021,108870.0,108860.0,1e-08]
[1756578839414,4.88844021,108870.0,108860.0,1e-08]